bitfinex-derivatives/quotes_BTCF0:USTF0_20240925
["timestamp","ask_amount","ask_price","bid_price","bid_amount"]
[1727286093763,0.02566215,63174.0,63172.0,0.182]
[1727286094066,0.3608,63176.0,63175.0,0.079149]
[1727286095158,0.3618,63176.0,63175.0,0.079149]
[1727286096268,0.3628,63176.0,63175.0,0.079149]
[1727286101267,0.3628,63176.0,63175.0,0.131349]
[1727286102165,0.441947,63176.0,63175.0,0.0522]
[1727286102667,0.621947,63176.0,63175.0,0.0522]
[1727286102872,0.74039416,63176.0,63175.0,0.0522]
[1727286103070,1.038647,63176.0,63175.0,0.131349]
[1727286103268,1.038647,63176.0,63166.0,0.12008849]
[1727286103269,0.079156,63169.0,63164.0,0.12663479]
[1727286103472,0.079156,63169.0,63162.0,0.079165]
[1727286103473,0.079164,63163.0,63162.0,0.079165]
[1727286103664,0.25822779,63163.0,63155.0,0.079173]
[1727286103870,0.363,63165.0,63155.0,0.079173]
[1727286103871,0.619973,63156.0,63155.0,0.079173]
[1727286104063,0.68252735,63156.0,63155.0,0.079173]
[1727286104463,0.619973,63156.0,63155.0,0.079173]
[1727286105182,0.619973,63156.0,63155.0,0.088173]
[1727286105479,0.5408,63156.0,63155.0,0.088173]
[1727286106376,0.55224859,63156.0,63155.0,0.088173]
[1727286106976,0.55224859,63156.0,63155.0,0.098173]
[1727286114071,0.63142159,63156.0,63155.0,0.098173]
[1727286114471,0.63142159,63156.0,63155.0,0.019]
[1727286114671,1.70642159,63156.0,63155.0,0.019]
[1727286115284,3.20642159,63156.0,63155.0,0.019]
[1727286115676,1.70642159,63156.0,63155.0,0.019]
[1727286115878,1.78559459,63156.0,63155.0,0.019]
[1727286116783,0.079186,63146.0,63135.0,0.0582]
[1727286116988,0.3608,63136.0,63135.0,0.079199]
[1727286118881,0.3608,63136.0,63135.0,0.093199]
[1727286119478,0.3618,63136.0,63135.0,0.091199]
[1727286119790,0.3733851,63136.0,63135.0,0.091199]
[1727286120290,0.3743851,63136.0,63135.0,0.094199]
[1727286123985,0.3628,63136.0,63135.0,0.094199]
[1727286124893,0.002,63136.0,63135.0,0.454999]
[1727286126093,0.079184,63147.0,63144.0,0.079187]
[1727286126588,0.01199359,63148.0,63147.0,0.079184]
[1727286126789,0.0559,63156.0,63147.0,0.079184]
[1727286126790,0.0559,63156.0,63152.0,0.079177]
[1727286126988,0.2359,63156.0,63152.0,0.079177]
[1727286127189,0.2359,63156.0,63147.0,0.3608]
[1727286127190,0.18,63153.0,63147.0,0.3608]
[1727286127386,0.18,63148.0,63145.0,0.079185]
[1727286127588,0.079184,63147.0,63144.0,0.002]
[1727286127890,0.079186,63145.0,63144.0,0.002]
[1727286128695,0.079186,63145.0,63144.0,0.005]
[1727286128889,1.233492,63145.0,63144.0,0.003]
[1727286129189,0.07919,63142.0,63141.0,0.3608]
[1727286129493,0.25919,63142.0,63141.0,0.3608]
[1727286130493,0.25919,63142.0,63133.0,0.3608]
[1727286130494,0.18,63142.0,63133.0,0.3608]
[1727286130697,0.002,63142.0,63141.0,0.012]
[1727286130997,0.182,63142.0,63141.0,0.012]
[1727286131884,0.34038,63142.0,63141.0,0.012]
[1727286132083,0.8155,63142.0,63141.0,0.006]
[1727286132286,0.0792,63134.0,63133.0,0.027]
[1727286132585,0.3384,63134.0,63133.0,0.027]
[1727286132785,1.4136,63134.0,63133.0,0.013]
[1727286132993,1.39667655,63134.0,63124.0,0.3608]
[1727286133298,0.18,63125.0,63124.0,0.3608]
[1727286133500,0.18,63125.0,63124.0,0.440013]
[1727286133694,0.079209,63127.0,63124.0,0.440013]
[1727286133998,0.18,63126.0,63125.0,0.079211]
[1727286134293,0.25921,63126.0,63125.0,0.079211]
[1727286134492,0.25921,63126.0,63124.0,0.3608]
[1727286134493,0.079211,63125.0,63124.0,0.3608]
[1727286134891,0.066211,63125.0,63124.0,0.3608]
[1727286135587,0.07812183,63125.0,63124.0,0.3608]
[1727286135787,0.07912183,63125.0,63124.0,0.3738]
[1727286135987,0.08012183,63125.0,63124.0,0.3738]
[1727286137099,0.26012183,63125.0,63124.0,0.3738]
[1727286137695,0.26012183,63125.0,63124.0,0.013]
[1727286137900,0.33933283,63125.0,63124.0,0.013]
[1727286138595,0.26012183,63125.0,63124.0,0.013]
[1727286141989,0.01391083,63125.0,63124.0,0.092213]
[1727286142710,0.002,63125.0,63124.0,0.092213]
[1727286145006,0.002,63125.0,63124.0,0.747453]
[1727286145306,0.06597655,63137.0,63136.0,0.079198]
[1727286145599,0.06227655,63137.0,63136.0,0.619998]
[1727286146904,0.01146691,63142.0,63141.0,0.079191]
[1727286147119,0.079185,63146.0,63141.0,0.079191]
[1727286147297,0.079185,63146.0,63142.0,0.057]
[1727286148201,0.079186,63145.0,63142.0,0.057]
[1727286148800,0.005,63146.0,63144.0,0.3608]
[1727286149005,0.005,63146.0,63145.0,0.079186]
[1727286149304,0.011,63146.0,63145.0,0.079186]
[1727286149516,0.006,63146.0,63145.0,0.079186]
[1727286149897,0.13915507,63156.0,63152.0,0.079177]
[1727286150097,0.13915507,63156.0,63152.0,0.3608]
[1727286150302,0.13915507,63156.0,63155.0,0.079174]
[1727286150804,0.15087799,63156.0,63155.0,0.079174]
[1727286151104,0.13915507,63156.0,63155.0,0.079174]
[1727286152002,0.14915507,63156.0,63155.0,0.079174]
[1727286152403,0.14915507,63156.0,63153.0,0.079175]
[1727286152709,0.15815507,63156.0,63154.0,0.079175]
[1727286153099,0.23732807,63156.0,63154.0,0.079175]
[1727286153298,0.15915507,63156.0,63154.0,0.079175]
[1727286153701,0.15915507,63156.0,63138.0,0.36863531]
[1727286153702,0.18,63155.0,63138.0,0.36863531]
[1727286154007,0.18,63145.0,63144.0,0.079188]
[1727286154305,0.18,63145.0,63143.0,0.3608]
[1727286154506,0.079188,63144.0,63143.0,0.3608]
[1727286155504,0.09098772,63144.0,63143.0,0.3608]
[1727286155900,0.09098772,63144.0,63143.0,0.3618]
[1727286156109,0.09798772,63144.0,63143.0,0.3618]
[1727286156510,0.09798772,63144.0,63143.0,0.440989]
[1727286156711,0.10398772,63144.0,63143.0,0.439989]
[1727286158201,0.092188,63144.0,63143.0,0.079189]
[1727286158410,0.013,63144.0,63143.0,0.079189]
[1727286160706,0.013,63144.0,63143.0,0.439989]
[1727286166314,0.013,63144.0,63143.0,0.3608]
[1727286166617,0.092188,63144.0,63143.0,0.3608]
[1727286166912,0.092188,63144.0,63133.0,0.1144]
[1727286167102,0.18,63137.0,63134.0,0.079199]
[1727286167606,0.18,63137.0,63135.0,0.079199]
[1727286167811,0.259197,63137.0,63135.0,0.079199]
[1727286168008,0.079198,63136.0,63135.0,0.079199]
[1727286168507,0.0792,63134.0,63133.0,0.1164]
[1727286168910,0.0792,63134.0,63133.0,0.195601]
[1727286169111,0.0792,63134.0,63133.0,0.136801]
[1727286169307,0.0792,63134.0,63133.0,0.134801]
[1727286169512,0.079203,63132.0,63131.0,0.363176]
[1727286169714,0.259203,63132.0,63131.0,0.363176]
[1727286171426,0.260203,63132.0,63131.0,0.363176]
[1727286172223,0.261203,63132.0,63131.0,0.365176]
[1727286172925,0.261203,63132.0,63131.0,0.44438]
[1727286174013,0.081203,63132.0,63131.0,0.44438]
[1727286175711,0.081203,63132.0,63131.0,0.442004]
[1727286176420,0.42535165,63141.0,63131.0,1.697204]
[1727286176616,0.0037,63148.0,63147.0,0.079184]
[1727286176815,0.06597164,63160.0,63147.0,1.00815471]
[1727286177023,0.1673,63162.0,63159.0,0.3608]
[1727286178212,0.073,63162.0,63159.0,0.3608]
[1727286178622,0.059,63162.0,63159.0,0.3608]
[1727286178820,0.073,63162.0,63159.0,0.3608]
[1727286179019,0.08764069,63162.0,63160.0,0.079167]
[1727286179227,0.10064069,63162.0,63160.0,0.079167]
[1727286179822,0.10064069,63162.0,63159.0,0.439968]
[1727286180121,0.079166,63161.0,63159.0,0.3608]
[1727286180325,0.10064069,63162.0,63159.0,0.3608]
[1727286180715,0.10064069,63162.0,63158.0,0.07917]
[1727286180913,0.10064069,63162.0,63161.0,0.079166]
[1727286181115,0.04164069,63162.0,63161.0,0.079166]
[1727286181715,0.04264069,63162.0,63161.0,0.079166]
[1727286181920,0.02864069,63162.0,63161.0,0.079166]
[1727286182116,0.04264069,63162.0,63161.0,0.079166]
[1727286182425,0.02864069,63162.0,63161.0,0.079166]
[1727286182631,0.04264069,63162.0,63161.0,0.080166]
[1727286182813,0.028,63162.0,63161.0,0.080166]
[1727286183526,0.028,63162.0,63161.0,0.081166]
[1727286185225,0.05366725,63162.0,63161.0,0.081166]
[1727286186433,0.05366725,63162.0,63161.0,0.261166]
[1727286187331,0.028,63162.0,63161.0,0.261166]
[1727286187624,0.028,63162.0,63161.0,0.43877103]
[1727286187625,0.10592727,63162.0,63161.0,0.43877103]
[1727286188125,0.017,63162.0,63161.0,0.43777103]
[1727286188328,0.005,63162.0,63161.0,0.43677103]
[1727286188825,0.005,63162.0,63161.0,0.25677103]
[1727286189026,0.003,63162.0,63161.0,0.25677103]
[1727286189229,0.003,63162.0,63161.0,0.25977103]
[1727286189632,0.06531768,63162.0,63161.0,1.41389703]
[1727286189927,0.09340745,63169.0,63163.0,0.079164]
[1727286189928,0.06231768,63165.0,63163.0,0.079164]
[1727286190227,0.06231768,63167.0,63166.0,0.07916]
[1727286190429,0.06231768,63168.0,63167.0,0.079159]
[1727286190631,0.06231768,63169.0,63168.0,0.079157]
[1727286190828,0.0037,63179.0,63170.0,0.079155]
[1727286190829,0.06231768,63171.0,63170.0,0.079155]
[1727286191133,0.0037,63183.0,63171.0,0.3387221]
[1727286191134,0.06231768,63172.0,63171.0,0.3387221]
[1727286191321,0.06231768,63174.0,63173.0,0.079151]
[1727286191520,0.06231768,63175.0,63174.0,0.07915]
[1727286191726,0.09340745,63183.0,63176.0,0.079147]
[1727286191727,0.06231768,63183.0,63176.0,0.079147]
[1727286191929,0.0037,63187.0,63186.0,0.079135]
[1727286192133,0.0037,63187.0,63186.0,0.259135]
[1727286192333,0.0037,63187.0,63186.0,0.43361655]
[1727286193334,0.0177,63187.0,63186.0,0.43461655]
[1727286194034,0.0317,63187.0,63186.0,0.43461655]
[1727286194237,0.0317,63187.0,63186.0,0.25461655]
[1727286195251,0.2117,63187.0,63186.0,0.17548155]
[1727286195439,0.290834,63187.0,63186.0,0.001]
[1727286195737,0.079143,63180.0,63176.0,0.3608]
[1727286195928,0.18,63178.0,63176.0,0.3608]
[1727286196329,0.18,63178.0,63176.0,0.439946]
[1727286196646,0.18,63178.0,63177.0,0.079146]
[1727286197135,0.186,63178.0,63177.0,0.079146]
[1727286197934,0.006,63178.0,63177.0,0.079146]
[1727286198138,0.006,63178.0,63176.0,0.3608]
[1727286198139,0.005,63180.0,63179.0,0.079144]
[1727286198541,0.54140251,63186.0,63176.0,0.3608]
[1727286198542,0.18060251,63186.0,63176.0,0.3608]
[1727286198736,0.18060251,63186.0,63185.0,0.079136]
[1727286199442,0.0566,63186.0,63185.0,0.079136]
[1727286200349,0.009,63180.0,63179.0,0.001]
[1727286200528,0.30248391,63180.0,63179.0,0.080144]
[1727286200732,0.21616567,63180.0,63179.0,0.25754316]
[1727286200928,0.20716567,63180.0,63179.0,0.25754316]
[1727286201228,0.21746029,63180.0,63179.0,0.25754316]
[1727286201435,0.20716567,63180.0,63179.0,0.25654316]
[1727286201841,0.028,63186.0,63180.0,0.4748]
[1727286202047,0.028,63186.0,63179.0,1.3130913]
[1727286202048,0.0037,63195.0,63185.0,0.6308]
[1727286202253,0.0037,63202.0,63194.0,0.6308]
[1727286202540,0.0592,63205.0,63204.0,0.079112]
[1727286202727,0.25911992,63213.0,63202.0,0.27]
[1727286203032,0.1152,63213.0,63209.0,0.079106]
[1727286203935,0.194301,63213.0,63209.0,0.079106]
[1727286204132,0.3608,63211.0,63205.0,0.07911]
[1727286204533,0.079105,63210.0,63209.0,0.001]
[1727286205047,0.3608,63211.0,63209.0,0.001]
[1727286205236,0.006,63212.0,63209.0,0.001]
[1727286205742,0.005,63210.0,63209.0,0.081106]
[1727286206041,0.005,63210.0,63209.0,0.351106]
[1727286206339,0.015,63210.0,63209.0,0.351106]
[1727286206945,0.07086471,63210.0,63209.0,0.351106]
[1727286207146,0.07083315,63210.0,63209.0,0.351106]
[1727286207341,0.015,63210.0,63209.0,0.351106]
[1727286207739,0.01,63210.0,63209.0,0.351106]
[1727286208337,0.01,63210.0,63209.0,0.081106]
[1727286209541,0.009,63210.0,63209.0,0.081106]
[1727286210641,0.009,63210.0,63200.0,0.3608]
[1727286210843,0.079119,63201.0,63200.0,0.079116]
[1727286211336,0.079119,63201.0,63196.0,0.00237351]
[1727286211337,0.07912,63198.0,63197.0,0.079121]
[1727286211541,0.09327477,63199.0,63196.0,0.00237351]
[1727286211849,0.27,63202.0,63175.0,0.3286]
[1727286211850,0.079136,63186.0,63175.0,0.3286]
[1727286212151,0.079136,63186.0,63173.0,0.06167431]
[1727286212152,0.09325896,63181.0,63179.0,0.079144]
[1727286212444,0.3608,63182.0,63173.0,0.00237431]
[1727286212445,0.079144,63179.0,63173.0,0.00237431]
[1727286212644,0.09326652,63174.0,63173.0,0.00237431]
[1727286212834,0.3608,63176.0,63173.0,0.00237431]
[1727286213144,0.3608,63176.0,63175.0,0.079149]
[1727286213347,0.40150086,63176.0,63175.0,0.079149]
[1727286214240,0.38750086,63176.0,63175.0,0.079149]
[1727286215247,0.39550086,63176.0,63175.0,0.080149]
[1727286215443,0.44911827,63176.0,63175.0,0.080149]
[1727286215950,0.3468,63176.0,63175.0,0.079149]
[1727286216146,0.3468,63176.0,63175.0,0.080149]
[1727286216147,0.3658,63176.0,63175.0,0.080149]
[1727286216348,0.45911827,63176.0,63175.0,0.080149]
[1727286216844,0.48478121,63176.0,63175.0,0.080149]
[1727286217234,0.39146294,63176.0,63175.0,0.080149]
[1727286217641,0.48482469,63176.0,63175.0,0.080149]
[1727286218351,0.39146294,63176.0,63175.0,0.080149]
[1727286221455,0.10880891,63183.0,63175.0,0.080149]
[1727286221456,0.07784621,63187.0,63185.0,0.079136]
[1727286221639,0.10880891,63200.0,63186.0,0.9916]
[1727286221839,0.0606,63203.0,63186.0,0.9916]
[1727286221840,0.0606,63203.0,63200.0,0.079117]
[1727286222051,0.0606,63203.0,63199.0,0.27]
[1727286222252,0.0606,63203.0,63201.0,0.16959882]
[1727286222452,0.24365304,63213.0,63199.0,0.27]
[1727286222453,0.198401,63213.0,63204.0,0.079111]
[1727286222647,0.198401,63213.0,63206.0,0.3608]
[1727286223351,0.198401,63213.0,63205.0,0.079111]
[1727286223861,0.21321536,63213.0,63206.0,0.07911]
[1727286224450,0.21321536,63213.0,63204.0,0.3608]
[1727286224843,0.21321536,63213.0,63199.0,0.27]
[1727286225144,0.21321536,63213.0,63208.0,0.079107]
[1727286225351,0.22421536,63213.0,63208.0,0.079107]
[1727286225540,0.0613,63212.0,63210.0,0.079105]
[1727286226351,0.0613,63212.0,63211.0,0.079104]
[1727286226855,0.0613,63212.0,63208.0,0.001]
[1727286227051,0.0733,63212.0,63210.0,0.001]
[1727286227557,0.152403,63212.0,63210.0,0.080105]
[1727286228245,0.349104,63211.0,63210.0,0.001]
[1727286228656,1.3446,63211.0,63198.0,0.3608]
[1727286228852,0.27,63199.0,63190.0,0.04735189]
[1727286229045,0.27,63199.0,63187.0,0.04735189]
[1727286229357,0.27,63199.0,63186.0,0.3608]
[1727286229358,0.27,63199.0,63197.0,0.079121]
[1727286229856,0.27,63199.0,63198.0,0.07912]
[1727286230353,0.3097592,63199.0,63198.0,0.07912]
[1727286231148,0.3097592,63199.0,63198.0,0.43992]
[1727286231149,0.0397592,63199.0,63198.0,0.43992]
[1727286231553,0.0467592,63199.0,63198.0,0.43992]
[1727286232056,0.0567592,63199.0,63198.0,0.44092]
[1727286232559,0.0467592,63199.0,63198.0,0.43992]
[1727286232862,0.0467592,63199.0,63198.0,0.44192]
[1727286232863,0.0577592,63199.0,63198.0,0.44192]
[1727286233053,0.018,63199.0,63198.0,0.44192]
[1727286233255,0.009,63199.0,63198.0,0.6157678]
[1727286233558,0.018,63199.0,63198.0,0.6167678]
[1727286234261,0.019,63199.0,63198.0,0.6958878]
[1727286234646,0.019,63199.0,63198.0,0.6167678]
[1727286234851,0.018,63199.0,63198.0,0.6167678]
[1727286235054,0.017,63199.0,63198.0,0.6167678]
[1727286235558,0.012,63199.0,63198.0,0.6157678]
[1727286235763,0.007,63199.0,63198.0,0.6147678]
[1727286236459,0.03265116,63199.0,63198.0,0.6147678]
[1727286237358,0.007,63199.0,63198.0,0.6147678]
[1727286240656,0.007,63199.0,63192.0,0.3608]
[1727286240963,0.54,63193.0,63171.0,0.01150512]
[1727286241261,0.613241,63198.0,63155.0,0.079173]
[1727286241262,0.079163,63164.0,63155.0,0.079173]
[1727286241465,0.27,63167.0,63153.0,0.3608]
[1727286241660,0.349159,63167.0,63157.0,0.079171]
[1727286241854,0.079159,63167.0,63157.0,0.079171]
[1727286242059,0.079162,63165.0,63153.0,0.3608]
[1727286242255,0.27,63165.0,63153.0,0.3608]
[1727286242664,0.27,63165.0,63153.0,0.3748]
[1727286243363,0.27,63165.0,63153.0,0.3818]
[1727286244269,0.079168,63160.0,63153.0,0.3818]
[1727286244764,0.27,63155.0,63153.0,0.3638]
[1727286245071,0.079175,63154.0,63153.0,0.3718]
[1727286245459,0.002,63165.0,63153.0,1.70884]
[1727286245460,0.001,63165.0,63153.0,1.70884]
[1727286245665,0.0037,63178.0,63172.0,0.079152]
[1727286245963,0.0619,63189.0,63153.0,0.78812116]
[1727286245964,0.27,63176.0,63160.0,0.3608]
[1727286246163,0.27,63163.0,63153.0,0.3638]
[1727286246369,0.001,63154.0,63153.0,0.3718]
[1727286246569,0.001,63154.0,63153.0,0.3758]
[1727286247566,0.001,63154.0,63153.0,0.62574166]
[1727286247864,0.001,63163.0,63153.0,0.62574166]
[1727286247865,0.001,63163.0,63155.0,0.079173]
[1727286248071,0.001,63163.0,63156.0,0.27]
[1727286248278,0.001,63163.0,63156.0,0.44076566]
[1727286248476,0.001,63163.0,63156.0,0.27]
[1727286248779,0.01167405,63169.0,63155.0,0.079173]
[1727286249068,0.440964,63163.0,63155.0,0.011]
[1727286249571,0.079166,63162.0,63155.0,0.011]
[1727286250273,0.079166,63161.0,63156.0,0.008]
[1727286250665,0.079166,63161.0,63156.0,0.019]
[1727286250967,0.079166,63161.0,63156.0,0.011]
[1727286251272,0.079171,63158.0,63155.0,0.019]
[1727286251472,0.079168,63160.0,63155.0,0.019]
[1727286251672,0.002,63162.0,63155.0,0.019]
[1727286251863,0.07917,63158.0,63156.0,0.019]
[1727286252069,0.002,63161.0,63156.0,0.019]
[1727286252361,0.002,63161.0,63156.0,0.087171]
[1727286252565,0.001,63158.0,63156.0,0.087171]
[1727286252878,0.001,63158.0,63157.0,0.349171]
[1727286254063,0.001,63160.0,63159.0,0.079169]
[1727286254265,0.3608,63163.0,63160.0,0.079167]
[1727286254466,0.3608,63163.0,63161.0,0.079166]
[1727286255063,0.3608,63163.0,63162.0,0.079165]
[1727286255294,0.3618,63163.0,63162.0,0.079165]
[1727286257075,0.3618,63163.0,63162.0,0.082165]
[1727286257568,0.440964,63163.0,63162.0,0.082165]
[1727286258070,0.439964,63163.0,63162.0,0.082165]
[1727286258274,0.439964,63163.0,63162.0,0.087165]
[1727286259461,0.439964,63163.0,63162.0,0.008]
[1727286259668,0.519128,63163.0,63162.0,0.008]
[1727286260775,0.994088,63163.0,63162.0,0.008]
[1727286260972,0.079183,63148.0,63147.0,0.079184]
[1727286262469,0.079188,63145.0,63144.0,0.079187]
[1727286262671,0.074188,63145.0,63144.0,0.079187]
[1727286263274,0.074188,63145.0,63143.0,0.27]
[1727286263275,0.001,63148.0,63147.0,0.079184]
[1727286263475,0.081183,63148.0,63147.0,0.007]
[1727286263779,0.143083,63148.0,63147.0,0.007]
[1727286264085,0.079184,63147.0,63146.0,0.079184]
[1727286265183,0.077184,63147.0,63146.0,0.079184]
[1727286265376,0.001,63148.0,63147.0,0.079184]
[1727286265990,0.002,63148.0,63147.0,0.080184]
[1727286266782,0.079179,63151.0,63150.0,0.07918]
[1727286267088,0.079179,63151.0,63150.0,0.34918]
[1727286268290,0.079179,63151.0,63150.0,0.35118]
[1727286270296,0.09092273,63154.0,63153.0,0.079176]
[1727286270586,0.079176,63154.0,63153.0,0.079176]
[1727286272079,0.3608,63157.0,63156.0,0.079173]
[1727286272278,0.079163,63164.0,63163.0,0.079163]
[1727286273283,0.011,63164.0,63162.0,0.27]
[1727286273489,0.011,63164.0,63163.0,0.079164]
[1727286273885,0.023,63164.0,63163.0,0.079164]
[1727286274291,0.102162,63164.0,63163.0,0.079164]
[1727286274493,0.102162,63164.0,63146.0,0.3286]
[1727286274494,0.9713768,63164.0,63146.0,0.3286]
[1727286274700,0.079177,63153.0,63142.0,0.6308]
[1727286274997,0.06636582,63152.0,63151.0,0.079179]
[1727286275193,0.14521711,63152.0,63151.0,0.079179]
[1727286275392,0.06603911,63152.0,63151.0,0.079179]
[1727286275788,0.06603911,63152.0,63148.0,0.27]
[1727286275789,0.06711575,63152.0,63148.0,0.27]
[1727286275989,0.06711575,63151.0,63150.0,0.07918]
[1727286276199,0.06712708,63155.0,63150.0,0.27]
[1727286276492,0.10949456,63157.0,63153.0,0.079176]
[1727286276493,0.06712708,63154.0,63153.0,0.079176]
[1727286276684,0.04145585,63154.0,63153.0,0.349176]
[1727286276884,0.10949456,63157.0,63156.0,0.079173]
[1727286277197,0.06718072,63157.0,63156.0,0.079173]
[1727286277500,0.21433491,63158.0,63157.0,0.079171]
[1727286277687,0.25587139,63158.0,63157.0,0.079171]
[1727286278590,0.06720683,63158.0,63157.0,0.079171]
[1727286278787,0.06720683,63158.0,63157.0,0.439971]
[1727286278984,0.06741744,63158.0,63157.0,0.43997]
[1727286279189,0.0037,63167.0,63162.0,0.079165]
[1727286279190,0.10949689,63163.0,63162.0,0.079165]
[1727286279387,0.10949689,63164.0,63163.0,0.079164]
[1727286279589,0.0674932,63164.0,63161.0,0.27]
[1727286279807,0.01197057,63167.0,63161.0,0.27]
[1727286279808,0.0674932,63163.0,63162.0,0.079165]
[1727286279994,0.079162,63165.0,63164.0,0.079162]
[1727286280298,0.14653225,63165.0,63164.0,0.079162]
[1727286281092,0.14654701,63165.0,63164.0,0.079162]
[1727286282495,0.079162,63165.0,63164.0,0.079162]
[1727286282695,0.090162,63165.0,63164.0,0.079162]
[1727286283003,0.102162,63165.0,63164.0,0.079162]
[1727286283695,0.023,63165.0,63164.0,0.079162]
[1727286284003,0.02296,63165.0,63164.0,0.079162]
[1727286284803,0.38376,63165.0,63160.0,0.079167]
[1727286285000,0.079169,63161.0,63160.0,0.079167]
[1727286285990,0.07917,63158.0,63157.0,0.43997]
[1727286286594,0.07917,63158.0,63157.0,0.3608]
[1727286287404,0.08317,63158.0,63157.0,0.3608]
[1727286288405,0.09512782,63158.0,63157.0,0.3608]
[1727286288904,0.079178,63153.0,63151.0,0.27]
[1727286289205,0.07918,63150.0,63149.0,0.3608]
[1727286289402,0.07918,63150.0,63149.0,0.439981]
[1727286289606,0.1943119,63150.0,63149.0,0.439981]
[1727286290404,0.1943119,63150.0,63149.0,0.004]
[1727286290708,0.1943119,63150.0,63149.0,0.00195037]
[1727286290709,0.24901814,63150.0,63149.0,0.00195037]
[1727286290907,0.079195,63138.0,63130.0,0.27]
[1727286291096,0.15293047,63138.0,63129.0,0.1229]
[1727286291297,0.15293047,63138.0,63129.0,0.3929]
[1727286291298,0.1943269,63138.0,63129.0,0.3929]
[1727286291898,0.27788523,63138.0,63129.0,0.3929]
[1727286292097,0.31928166,63138.0,63129.0,0.3929]
[1727286292403,0.1953269,63138.0,63137.0,0.00437536]
[1727286292594,0.1963269,63138.0,63137.0,0.00437536]
[1727286292904,0.1171319,63138.0,63137.0,0.00437536]
[1727286293407,0.1171319,63138.0,63137.0,0.08357136]
[1727286293605,0.15258867,63138.0,63137.0,0.08357136]
[1727286293807,0.24204829,63138.0,63137.0,0.08357136]
[1727286294009,0.1171319,63138.0,63137.0,0.08357136]
[1727286294207,0.24204829,63138.0,63137.0,0.08357136]
[1727286294398,0.1171319,63138.0,63137.0,0.08357136]
[1727286295698,0.5571269,63138.0,63137.0,0.00437536]
[1727286295899,0.1963269,63138.0,63137.0,0.00437536]
[1727286296095,0.20870739,63138.0,63137.0,0.00437536]
[1727286296312,0.25010382,63138.0,63137.0,0.00437536]
[1727286296706,0.39073624,63138.0,63137.0,0.00437536]
[1727286296908,0.25010382,63138.0,63137.0,0.00437536]
[1727286297103,0.39073624,63138.0,63137.0,0.00437536]
[1727286297601,0.081195,63138.0,63137.0,0.00437536]
[1727286301112,0.081195,63138.0,63137.0,0.08357136]
[1727286302119,0.081195,63138.0,63137.0,0.00437536]
[1727286302408,0.141795,63138.0,63137.0,0.00437536]
[1727286302911,0.22099,63138.0,63137.0,0.00437536]
[1727286303113,0.23679,63138.0,63137.0,0.00437536]
[1727286303318,0.079215,63122.0,63118.0,0.06311524]
[1727286303505,0.079197,63137.0,63104.0,2.4e-07]
[1727286303506,0.7216,63119.0,63104.0,2.4e-07]
[1727286303706,0.07925,63095.0,63093.0,0.18]
[1727286303903,1.5,63094.0,63090.0,0.0037]
[1727286304113,1.5,63094.0,63093.0,0.079252]
[1727286304514,1.5,63094.0,63093.0,0.259252]
[1727286305529,1.5,63094.0,63093.0,1.86718825]
[1727286305823,0.079234,63107.0,63098.0,0.079245]
[1727286305824,0.09079401,63107.0,63098.0,0.079245]
[1727286306111,0.09079401,63107.0,63106.0,0.18]
[1727286306315,0.079234,63107.0,63100.0,0.27]
[1727286306708,1.5,63106.0,63100.0,0.27]
[1727286307117,1.5,63106.0,63105.0,0.27]
[1727286307722,0.3608,63109.0,63105.0,0.27]
[1727286308107,0.008,63107.0,63100.0,0.27]
[1727286308417,0.008,63107.0,63099.0,0.4853]
[1727286308418,0.079238,63104.0,63099.0,0.4853]
[1727286308922,0.07924,63102.0,63099.0,0.3608]
[1727286309107,0.454032,63109.0,63101.0,0.6308]
[1727286309517,0.447032,63109.0,63101.0,0.6308]
[1727286310222,0.447032,63109.0,63104.0,0.079238]
[1727286310815,0.447032,63109.0,63101.0,0.710041]
[1727286310816,0.079236,63106.0,63101.0,0.710041]
[1727286311015,0.002,63104.0,63101.0,0.349241]
[1727286311420,0.002,63104.0,63102.0,0.07924]
[1727286312304,0.079236,63106.0,63102.0,0.07924]
[1727286312508,0.003,63104.0,63102.0,0.07924]
[1727286314105,0.007,63104.0,63102.0,0.07924]
[1727286315328,0.007,63104.0,63098.0,0.079245]
[1727286315329,0.079245,63099.0,63098.0,0.079245]
[1727286315925,0.3608,63103.0,63094.0,0.079249]
[1727286316219,0.3608,63103.0,63090.0,0.3608]
[1727286316220,0.079252,63093.0,63090.0,0.440055]
[1727286316411,0.079254,63092.0,63090.0,0.440055]
[1727286316721,0.079254,63092.0,63091.0,0.079254]
[1727286316911,0.3608,63097.0,63090.0,0.3608]
[1727286316912,0.079249,63095.0,63090.0,0.3608]
[1727286317412,0.03959973,63095.0,63094.0,0.07925]
[1727286318413,0.04059973,63095.0,63094.0,0.07925]
[1727286319124,0.03959973,63095.0,63094.0,0.07925]
[1727286319323,0.0037,63105.0,63094.0,0.18297505]
[1727286319510,0.079241,63102.0,63101.0,0.079241]
[1727286320719,0.081241,63102.0,63101.0,0.079241]
[1727286321927,0.085241,63102.0,63101.0,0.079241]
[1727286324414,0.006,63102.0,63101.0,0.079241]
[1727286324821,0.006,63102.0,63101.0,1.41179011]
[1727286325121,0.01173603,63117.0,63111.0,0.079229]
[1727286325326,0.079221,63118.0,63117.0,0.079221]
[1727286325513,0.079221,63118.0,63108.0,0.3608]
[1727286325514,0.079226,63114.0,63113.0,0.079226]
[1727286325821,0.27,63116.0,63108.0,0.3608]
[1727286326022,0.079229,63112.0,63111.0,0.079229]
[1727286326221,0.079229,63112.0,63108.0,0.3608]